fUSD/lending_fUSD_20250222
["ID","MTS","AMOUNT","RATE_DAILY","PERIOD"]
[354029559,1740185433912,-500.0,0.00011526,2]
[354029560,1740185433921,-500.0,0.00011526,2]
[354029561,1740185433930,-500.0,0.00011526,2]
[354029562,1740185433939,-500.0,0.00011526,2]
[354029563,1740185433949,-500.0,0.00011526,2]
[354029564,1740185433958,-500.0,0.00011526,2]
[354029565,1740185433967,-500.0,0.00011526,2]
[354029566,1740185433976,-500.0,0.00011526,2]
[354029567,1740185433985,-500.0,0.00011526,2]
[354029568,1740185433994,-500.0,0.00011526,2]
[354029569,1740185434004,-500.0,0.00011526,2]
[354029570,1740185434013,-500.0,0.00011526,2]
[354029571,1740185434022,-500.0,0.00011526,2]
[354029572,1740185434031,-500.0,0.00011526,2]
[354029573,1740185434040,-500.0,0.00011526,2]
[354029574,1740185434050,-500.0,0.00011526,2]
[354029575,1740185434059,-500.0,0.00011526,2]
[354029576,1740185434068,-500.0,0.00011526,2]
[354029577,1740185434077,-500.0,0.00011526,2]
[354029578,1740185434086,-500.0,0.00011526,2]
[354029579,1740185434095,-500.0,0.00011526,2]
[354029580,1740185434104,-500.0,0.00011526,2]
[354029581,1740185434113,-500.0,0.00011526,2]
[354029582,1740185434122,-176.6,0.00011526,2]
[354029583,1740185434132,-500.0,0.00011526,2]
[354029584,1740185434141,-500.0,0.00011526,2]
[354029585,1740185434151,-500.0,0.00011526,2]
[354029586,1740185434160,-500.0,0.00011526,2]
[354029587,1740185434169,-500.0,0.00011526,2]
[354029588,1740185434179,-500.0,0.00011526,2]
[354029589,1740185434188,-500.0,0.00011526,2]
[354029590,1740185434198,-500.0,0.00011526,2]
[354029591,1740185434207,-500.0,0.00011526,2]
[354029592,1740185434218,-500.0,0.00011526,2]
[354029593,1740185434227,-500.0,0.00011526,2]
[354029594,1740185434236,-500.0,0.00011526,2]
[354029595,1740185434246,-500.0,0.00011526,2]
[354029596,1740185434255,-500.0,0.00011526,2]
[354029597,1740185434264,-500.0,0.00011526,2]
[354029598,1740185434273,-500.0,0.00011526,2]
[354029599,1740185434283,-191.15,0.00011526,2]
[354029600,1740185434292,-500.0,0.00011526,2]
[354029601,1740185434302,-2111.25,0.00011526,2]
[354029602,1740185434311,-272.77,0.00011526,2]
[354029603,1740185434320,-500.0,0.00011526,2]
[354029604,1740185434330,-500.0,0.00011526,2]
[354029605,1740185434339,-500.0,0.00011526,2]
[354029606,1740185434348,-500.0,0.00011526,2]
[354029607,1740185434358,-558.0,0.00011526,2]
[354029608,1740185434369,-500.0,0.00011526,2]
[354029609,1740185434378,-472.36829228,0.00011526,2]
[354029610,1740185434388,-500.0,0.00011526,2]
[354029611,1740185434397,-500.0,0.00011526,2]
[354029612,1740185434407,-500.0,0.00011526,2]
[354029613,1740185434416,-211.12,0.00011526,2]
[354029614,1740185434426,-500.0,0.00011526,2]
[354029615,1740185434435,-500.0,0.00011526,2]
[354029616,1740185434444,-500.0,0.00011526,2]
[354029617,1740185434453,-500.0,0.00011526,2]
[354029618,1740185434463,-500.0,0.00011526,2]
[354029619,1740185434472,-500.0,0.00011526,2]
[354029620,1740185434481,-439.76,0.00011526,2]
[354029621,1740185434491,-1000.0,0.00011564,2]
[354029622,1740185434500,-500.0,0.00011608,2]
[354029623,1740185434509,-500.0,0.00011608,2]
[354029624,1740185434518,-500.0,0.00011608,2]
[354029625,1740185434527,-500.0,0.00011608,2]
[354029626,1740185434537,-500.0,0.00011608,2]
[354029627,1740185434546,-500.0,0.00011608,2]
[354029628,1740185434555,-500.0,0.00011608,2]
[354029629,1740185434566,-500.0,0.00011608,2]
[354029630,1740185434576,-500.0,0.00011608,2]
[354029631,1740185434586,-500.0,0.00011608,2]
[354029632,1740185434595,-500.0,0.00011608,2]
[354029633,1740185434609,-500.0,0.00011608,2]
[354029634,1740185434620,-500.0,0.00011608,2]
[354029635,1740185434630,-307.9,0.00011608,2]
[354029636,1740185434639,-543.33733623,0.00011608,2]
[354029637,1740185434649,-378.37,0.00011608,2]
[354029638,1740185434658,-500.0,0.00011608,2]
[354029639,1740185434668,-500.0,0.00011608,2]
[354029640,1740185434677,-500.0,0.00011608,2]
[354029641,1740185434687,-500.0,0.00011608,2]
[354029642,1740185434696,-544.34054724,0.00011608,2]
[354029643,1740185434705,-500.0,0.00011608,2]
[354029644,1740185434715,-500.0,0.00011608,2]
[354029645,1740185434725,-500.0,0.00011608,2]
[354029646,1740185434734,-500.0,0.00011608,2]
[354029647,1740185434744,-194.56,0.00011608,2]
[354029648,1740185434753,-211.13,0.00011608,2]
[354029649,1740185434763,-500.0,0.00011608,2]
[354029650,1740185434774,-2111.25,0.00011608,2]
[354029651,1740185434783,-500.0,0.00011608,2]
[354029652,1740185434792,-500.0,0.00011608,2]
[354029653,1740185434802,-325.24,0.00011608,2]
[354029654,1740185434811,-500.0,0.00011608,2]
[354029655,1740185434821,-500.0,0.00011608,2]
[354029656,1740185435005,-500.0,0.00011608,2]
[354029657,1740185435016,-500.0,0.00011608,2]
[354029658,1740185435026,-500.0,0.00011608,2]
[354029659,1740185435036,-500.0,0.00011608,2]
[354029660,1740185435045,-500.0,0.00011608,2]
[354029661,1740185435055,-430.92368014,0.00011608,2]
[354029662,1740185435064,-500.0,0.00011608,2]
[354029663,1740185435074,-529.89,0.0001169,2]
[354029664,1740185435083,-500.0,0.0001169,2]
[354029665,1740185435093,-223.0,0.0001169,2]
[354029666,1740185435102,-500.0,0.0001169,2]
[354029667,1740185435112,-500.0,0.0001169,2]
[354029668,1740185435122,-500.0,0.0001169,2]
[354029669,1740185435132,-500.0,0.0001169,2]
[354029670,1740185435142,-500.0,0.0001169,2]
[354029671,1740185435152,-500.0,0.0001169,2]
[354029672,1740185435162,-500.0,0.0001169,2]
[354029673,1740185435172,-387.71,0.0001169,2]
[354029674,1740185435181,-396.50236553,0.0001169,2]
[354029675,1740185435190,-500.0,0.0001169,2]
[354029676,1740185435200,-500.0,0.0001169,2]
[354029677,1740185435209,-2111.25,0.0001169,2]
[354029678,1740185435219,-500.0,0.0001169,2]
[354029679,1740185435228,-500.0,0.0001169,2]
[354029680,1740185435237,-500.0,0.0001169,2]
[354029681,1740185435247,-500.0,0.0001169,2]
[354029682,1740185435257,-500.0,0.0001169,2]
[354029683,1740185435266,-610.70999999,0.0001169,2]
[354029684,1740185435276,-500.0,0.0001169,2]
[354029685,1740185435285,-500.0,0.0001169,2]
[354029686,1740185435295,-500.0,0.0001169,2]
[354029687,1740185435303,-500.0,0.0001169,2]
[354029688,1740185435312,-500.08582552,0.000117,2]
[354029689,1740185435322,-319.94028651,0.00011754,2]
[354029690,1740185435331,-337.95,0.00011771,2]
[354029691,1740185435341,-358.33,0.00011772,2]
[354029692,1740185435350,-500.0,0.00011772,2]
[354029693,1740185435359,-500.0,0.00011772,2]
[354029694,1740185435370,-500.0,0.00011772,2]
[354029695,1740185435379,-500.0,0.00011772,2]
[354029696,1740185435388,-500.0,0.00011772,2]
[354029697,1740185435398,-500.0,0.00011772,2]
[354029698,1740185435407,-500.0,0.00011772,2]
[354029699,1740185435416,-2111.25,0.00011772,2]
[354029700,1740185435426,-500.0,0.00011772,2]
[354029701,1740185435436,-636.7565,0.00011772,2]
[354029702,1740185435446,-500.0,0.00011772,2]
[354029703,1740185435456,-500.0,0.00011772,2]
[354029704,1740185435465,-500.0,0.00011772,2]
[354029705,1740185435474,-500.0,0.00011772,2]
[354029706,1740185435484,-500.0,0.00011772,2]
[354029707,1740185435494,-500.0,0.00011772,2]
[354029708,1740185435503,-500.0,0.00011772,2]
[354029709,1740185435512,-1116.42,0.00011788,2]
[354029710,1740185435522,-500.0,0.00011854,2]
[354029711,1740185435531,-500.0,0.00011854,2]
[354029712,1740185435541,-500.0,0.00011854,2]
[354029713,1740185435550,-500.0,0.00011854,2]
[354029714,1740185435560,-500.0,0.00011854,2]
[354029715,1740185435572,-500.0,0.00011854,2]
[354029716,1740185435582,-500.0,0.00011854,2]
[354029717,1740185435591,-500.0,0.00011854,2]
[354029718,1740185435600,-500.0,0.00011854,2]
[354029719,1740185435610,-500.0,0.00011854,2]
[354029720,1740185435620,-500.0,0.00011854,2]
[354029721,1740185435629,-500.0,0.00011854,2]
[354029722,1740185435639,-500.0,0.00011854,2]
[354029723,1740185435648,-500.0,0.00011854,2]
[354029724,1740185435657,-500.0,0.00011854,2]
[354029725,1740185435667,-500.0,0.00011854,2]
[354029726,1740185435676,-500.0,0.00011854,2]
[354029727,1740185435686,-500.0,0.00011854,2]
[354029728,1740185435695,-500.0,0.00011854,2]
[354029729,1740185435704,-500.0,0.00011854,2]
[354029730,1740185435713,-500.0,0.00011854,2]
[354029731,1740185435723,-500.0,0.00011854,2]
[354029732,1740185435732,-500.0,0.00011854,2]
[354029733,1740185435742,-500.0,0.00011854,2]
[354029734,1740185435751,-500.0,0.00011854,2]
[354029735,1740185435760,-500.0,0.00011854,2]
[354029736,1740185435770,-500.0,0.00011854,2]
[354029737,1740185435782,-500.0,0.00011854,2]
[354029738,1740185435791,-500.0,0.00011854,2]
[354029739,1740185435801,-500.0,0.00011854,2]
[354029740,1740185435811,-500.0,0.00011854,2]
[354029741,1740185435821,-500.0,0.00011854,2]
[354029742,1740185435830,-500.0,0.00011854,2]
[354029743,1740185435840,-500.0,0.00011854,2]
[354029744,1740185435849,-500.0,0.00011854,2]
[354029745,1740185435860,-500.0,0.00011854,2]
[354029746,1740185435872,-500.0,0.00011854,2]
[354029747,1740185435881,-500.0,0.00011854,2]
[354029748,1740185435891,-500.0,0.00011854,2]
[354029749,1740185435900,-500.0,0.00011854,2]
[354029750,1740185435910,-500.0,0.00011854,2]
[354029751,1740185435920,-500.0,0.00011854,2]
[354029752,1740185435929,-500.0,0.00011854,2]
[354029753,1740185435939,-622.28,0.00011854,2]
[354029754,1740185435949,-500.0,0.00011854,2]
[354029755,1740185435958,-500.0,0.00011854,2]
[354029756,1740185435968,-500.0,0.00011854,2]
[354029757,1740185435977,-500.0,0.00011854,2]
[354029758,1740185435986,-524.85,0.00011854,2]
[354029759,1740185435995,-500.0,0.00011854,2]
[354029760,1740185436005,-500.0,0.00011854,2]
[354029761,1740185436014,-500.0,0.00011854,2]
[354029762,1740185436023,-500.0,0.00011854,2]
[354029763,1740185436032,-500.0,0.00011854,2]
[354029764,1740185436041,-500.0,0.00011854,2]
[354029765,1740185436050,-500.0,0.00011854,2]
[354029766,1740185436059,-500.0,0.00011854,2]
[354029767,1740185436068,-500.0,0.00011854,2]
[354029768,1740185436077,-500.0,0.00011854,2]
[354029769,1740185436087,-597.7,0.00011854,2]
[354029770,1740185436096,-500.0,0.00011854,2]
[354029771,1740185436106,-500.0,0.00011854,2]
[354029772,1740185436115,-500.0,0.00011854,2]
[354029773,1740185436125,-500.0,0.00011854,2]
[354029774,1740185436134,-500.0,0.00011854,2]
[354029775,1740185436143,-500.0,0.00011854,2]
[354029776,1740185436152,-248.29,0.00011854,2]
[354029777,1740185436161,-249.41104191,0.00011854,2]
[354029778,1740185436171,-500.0,0.00011854,2]
[354029779,1740185436180,-500.0,0.00011854,2]
[354029780,1740185436189,-500.0,0.00011854,2]
[354029781,1740185436200,-167.95,0.00011854,2]
[354029782,1740185436209,-500.0,0.00011854,2]
[354029783,1740185436218,-343.11,0.00011854,2]
[354029784,1740185436228,-500.0,0.00011854,2]
[354029785,1740185436238,-500.0,0.00011854,2]
[354029786,1740185436249,-500.0,0.00011854,2]
[354029787,1740185436258,-500.0,0.00011854,2]
[354029788,1740185436267,-500.0,0.00011854,2]
[354029789,1740185436276,-589.91,0.00011854,2]
[354029790,1740185436287,-156.61,0.00011854,2]
[354029791,1740185436296,-500.0,0.00011854,2]
[354029792,1740185436306,-500.0,0.00011854,2]
[354029793,1740185436315,-500.0,0.00011854,2]
[354029794,1740185436325,-284.97,0.00011854,2]
[354029795,1740185436334,-500.0,0.00011854,2]
[354029796,1740185436344,-486.86,0.00011854,2]
[354029797,1740185436355,-500.0,0.00011854,2]
[354029798,1740185436364,-500.0,0.00011854,2]
[354029799,1740185436374,-500.0,0.00011854,2]
[354029800,1740185436383,-500.0,0.00011854,2]
[354029801,1740185436392,-500.0,0.00011854,2]
[354029802,1740185436401,-500.0,0.00011854,2]
[354029803,1740185436410,-500.0,0.00011854,2]
[354029804,1740185436419,-304.10347051,0.00011854,2]
[354029805,1740185436428,-500.0,0.00011854,2]
[354029806,1740185436438,-500.0,0.00011854,2]
[354029807,1740185436447,-500.0,0.00011854,2]
[354029808,1740185436456,-500.0,0.00011854,2]
[354029809,1740185436465,-500.0,0.00011854,2]
[354029810,1740185436475,-500.0,0.00011854,2]
[354029811,1740185436484,-265.69,0.00011854,2]
[354029812,1740185436493,-226.59,0.00011854,2]
[354029813,1740185436502,-500.0,0.00011854,2]
[354029814,1740185436511,-2111.25,0.00011854,2]
[354029815,1740185436520,-500.0,0.00011854,2]
[354029816,1740185436530,-500.0,0.00011854,2]
[354029817,1740185436539,-616.09,0.00011854,2]
[354029818,1740185436547,-500.0,0.00011854,2]
[354029819,1740185436557,-500.0,0.00011854,2]
[354029820,1740185436568,-500.0,0.00011854,2]
[354029821,1740185436578,-500.0,0.00011854,2]
[354029822,1740185436587,-500.0,0.00011854,2]
[354029823,1740185436597,-500.0,0.00011854,2]
[354029824,1740185436606,-481.70486327,0.00011854,2]
[354029825,1740185436615,-500.0,0.00011854,2]
[354029826,1740185436624,-500.0,0.00011854,2]
[354029827,1740185436634,-500.0,0.00011854,2]
[354029828,1740185436643,-500.0,0.00011854,2]
[354029829,1740185436652,-500.0,0.00011854,2]
[354029830,1740185436661,-507.11115776,0.00011854,2]
[354029831,1740185436670,-500.0,0.00011854,2]
[354029832,1740185436679,-500.0,0.00011854,2]
[354029833,1740185436688,-500.0,0.00011854,2]
[354029834,1740185436697,-500.0,0.00011854,2]
[354029835,1740185436707,-648.67,0.00011854,2]
[354029836,1740185436716,-500.0,0.00011854,2]
[354029837,1740185436725,-500.0,0.00011854,2]
[354029838,1740185436734,-500.0,0.00011854,2]
[354029839,1740185436742,-500.0,0.00011854,2]
[354029840,1740185436751,-500.0,0.00011854,2]
[354029841,1740185436760,-500.0,0.00011854,2]
[354029842,1740185436770,-500.0,0.00011854,2]
[354029843,1740185436782,-501.15265856,0.00011854,2]
[354029844,1740185436791,-500.0,0.00011854,2]
[354029845,1740185436800,-500.0,0.00011854,2]
[354029846,1740185436810,-250.63590388,0.00011854,2]
[354029847,1740185436820,-500.0,0.00011854,2]
[354029848,1740185436829,-501.29989767,0.00011854,2]
[354029849,1740185436838,-609.15,0.00011936,2]
[354029850,1740185436847,-344.15,0.00011936,2]
[354029851,1740185436856,-500.0,0.00011936,2]
[354029852,1740185436866,-500.0,0.00011936,2]
[354029853,1740185436875,-500.0,0.00011936,2]
[354029854,1740185436884,-500.0,0.00011936,2]
[354029855,1740185436894,-500.0,0.00011936,2]
[354029856,1740185436903,-500.0,0.00011936,2]
[354029857,1740185436912,-500.0,0.00011936,2]
[354029858,1740185436923,-500.0,0.00011936,2]
[354029859,1740185436932,-500.0,0.00011936,2]
[354029860,1740185436942,-500.0,0.00011936,2]
[354029861,1740185436952,-500.0,0.00011936,2]
[354029862,1740185436961,-500.0,0.00011936,2]
[354029863,1740185436970,-500.0,0.00011936,2]
[354029864,1740185436979,-500.0,0.00011936,2]
[354029865,1740185436987,-176.66900077,0.00011936,2]
[354029866,1740185436996,-508.02,0.00011936,2]
[354029867,1740185437006,-500.0,0.00011936,2]
[354029868,1740185437016,-500.0,0.00011936,2]
[354029869,1740185437027,-500.0,0.00011936,2]
[354029870,1740185437036,-500.0,0.00011936,2]
[354029871,1740185437046,-500.0,0.00011936,2]
[354029872,1740185437056,-500.0,0.00011936,2]
[354029873,1740185437065,-500.0,0.00011936,2]
[354029874,1740185437074,-500.0,0.00011936,2]
[354029875,1740185437083,-500.0,0.00011936,2]
[354029876,1740185437092,-200.3355082,0.00011936,2]
[354029877,1740185437102,-500.0,0.00011936,2]
[354029878,1740185437113,-500.0,0.00011936,2]
[354029879,1740185437124,-254.05642594,0.00011936,2]
[354029880,1740185437133,-500.0,0.00011936,2]
[354029881,1740185437143,-500.0,0.00011936,2]
[354029882,1740185437152,-500.0,0.00011936,2]
[354029883,1740185437162,-624.28,0.00011936,2]
[354029884,1740185437172,-500.0,0.00011936,2]
[354029885,1740185437181,-500.0,0.00011936,2]
[354029886,1740185437193,-500.0,0.00011936,2]
[354029887,1740185437203,-635.89,0.00011936,2]
[354029888,1740185437212,-328.64,0.00011936,2]
[354029889,1740185437221,-500.0,0.00011936,2]
[354029891,1740185437230,-630.2,0.00011936,2]
[354029893,1740185437240,-367.64,0.00011936,2]
[354029894,1740185437249,-500.0,0.00011936,2]
[354029896,1740185437259,-500.0,0.00011936,2]
[354029898,1740185437268,-500.0,0.00011936,2]
[354029900,1740185437279,-526.98,0.00011936,2]
[354029901,1740185437287,-225.41,0.00011936,2]
[354029903,1740185437296,-199.69,0.00011936,2]
[354029904,1740185437306,-260.82,0.00011936,2]
[354029905,1740185437315,-337.8,0.00011936,2]
[354029906,1740185437324,-500.0,0.00011936,2]
[354029907,1740185437334,-443.59,0.00011936,2]
[354029909,1740185437343,-500.0,0.00011936,2]
[354029910,1740185437352,-500.0,0.00011936,2]
[354029911,1740185437362,-500.0,0.00011936,2]
[354029913,1740185437371,-500.0,0.00011936,2]
[354029914,1740185437381,-309.89,0.00011936,2]
[354029915,1740185437390,-500.0,0.00011936,2]
[354029916,1740185437399,-512.24,0.00011936,2]
[354029917,1740185437408,-500.0,0.00011936,2]
[354029918,1740185437417,-379.33,0.00011936,2]
[354029919,1740185437427,-500.0,0.00011936,2]
[354029920,1740185437436,-2111.25,0.00011936,2]
[354029921,1740185437445,-500.0,0.00011936,2]
[354029922,1740185437455,-643.35,0.00011936,2]
[354029923,1740185437464,-500.0,0.00011936,2]
[354029924,1740185437474,-500.0,0.00011936,2]
[354029925,1740185437484,-500.0,0.00011936,2]
[354029926,1740185437493,-227.0,0.00011936,2]
[354029927,1740185437503,-500.0,0.00011936,2]
[354029928,1740185437512,-500.0,0.00011936,2]
[354029929,1740185437522,-500.0,0.00011936,2]
[354029930,1740185437531,-153.65,0.00011936,2]
[354029931,1740185437540,-314.93,0.00011936,2]
[354029932,1740185437550,-500.0,0.00011936,2]
[354029933,1740185437560,-500.0,0.00011936,2]
[354029934,1740185437570,-500.0,0.00011936,2]
[354029935,1740185437580,-209.82,0.00011936,2]
[354029936,1740185437589,-332.92586367,0.00011936,2]
[354029937,1740185437598,-500.0,0.00011936,2]
[354029938,1740185437608,-500.0,0.00011936,2]
[354029939,1740185437617,-500.0,0.00011936,2]
[354029940,1740185437626,-500.0,0.00011936,2]
[354029941,1740185437635,-500.0,0.00011936,2]
[354029942,1740185437645,-500.0,0.00011936,2]
[354029943,1740185437654,-484.13849103,0.00011936,2]
[354029944,1740185437664,-500.0,0.00011945,2]
[354029945,1740185437673,-500.0,0.00011948,2]
[354029946,1740185437683,-800.0,0.00011948,2]
[354029947,1740185437692,-439.29,0.0001197,2]
[354029948,1740185437702,-500.0,0.00012019,2]
[354029949,1740185437712,-500.0,0.00012019,2]
[354029950,1740185437721,-500.0,0.00012019,2]
[354029951,1740185437730,-400.8,0.00012019,2]
[354029952,1740185437740,-500.0,0.00012019,2]
[354029953,1740185437751,-500.0,0.00012019,2]
[354029954,1740185437762,-401.96,0.00012019,2]
[354029955,1740185437772,-500.0,0.00012019,2]
[354029956,1740185437785,-500.0,0.00012019,2]
[354029957,1740185437794,-460.2,0.00012019,2]
[354029958,1740185437804,-500.0,0.00012019,2]
[354029959,1740185437813,-477.7,0.00012019,2]
[354029960,1740185437822,-500.0,0.00012019,2]
[354029961,1740185437832,-500.0,0.00012019,2]
[354029962,1740185437841,-500.0,0.00012019,2]
[354029963,1740185437850,-638.72,0.00012019,2]
[354029964,1740185437860,-433.14,0.00012019,2]
[354029965,1740185437870,-500.0,0.00012019,2]
[354029966,1740185437880,-445.24,0.00012019,2]
[354029967,1740185437889,-534.28,0.00012019,2]
[354029968,1740185437898,-404.62,0.00012019,2]
[354029969,1740185437907,-500.0,0.00012019,2]
[354029970,1740185437916,-471.44,0.00012019,2]
[354029971,1740185437925,-211.99,0.00012019,2]
[354029972,1740185437935,-500.0,0.00012019,2]
[354029973,1740185437944,-533.98,0.00012019,2]
[354029974,1740185437953,-500.0,0.00012019,2]
[354029975,1740185437962,-536.77,0.00012019,2]
[354029976,1740185437971,-434.91,0.00012019,2]
[354029977,1740185437980,-500.0,0.00012019,2]
[354029978,1740185437990,-609.20095934,0.00012019,2]
[354029979,1740185437999,-500.0,0.00012019,2]
[354029980,1740185438008,-2111.25,0.00012019,2]
[354029981,1740185438018,-500.0,0.00012019,2]
[354029982,1740185438027,-467.84,0.00012019,2]
[354029983,1740185438037,-500.0,0.00012019,2]
[354029984,1740185438046,-213.55,0.00012019,2]
[354029985,1740185438055,-500.0,0.00012019,2]
[354029986,1740185438064,-433.99,0.00012019,2]
[354029987,1740185438073,-500.0,0.00012019,2]
[354029988,1740185438083,-500.0,0.00012019,2]
[354029989,1740185438091,-500.0,0.00012019,2]
[354029990,1740185438100,-170.87,0.00012019,2]
[354029991,1740185438109,-500.0,0.00012019,2]
[354029992,1740185438119,-500.0,0.00012019,2]
[354029993,1740185438128,-500.0,0.00012019,2]
[354029994,1740185438137,-307.87,0.00012019,2]
[354029995,1740185438146,-500.0,0.00012019,2]
[354029996,1740185438155,-500.0,0.00012101,2]
[354029997,1740185438164,-440.12,0.00012101,2]
[354029998,1740185438173,-500.0,0.00012101,2]
[354029999,1740185438182,-184.32,0.00012101,2]
[354030000,1740185438192,-170.56,0.00012101,2]
[354030001,1740185438201,-484.86,0.00012101,2]
[354030002,1740185438210,-275.22,0.00012101,2]
[354030003,1740185438219,-500.0,0.00012101,2]
[354030004,1740185438228,-619.56,0.00012101,2]
[354030005,1740185438237,-394.58,0.00012101,2]
[354030006,1740185438247,-500.0,0.00012101,2]
[354030007,1740185438256,-500.0,0.00012101,2]
[354030008,1740185438265,-500.0,0.00012101,2]
[354030009,1740185438274,-215.48,0.00012101,2]
[354030010,1740185438283,-547.54,0.00012101,2]
[354030011,1740185438292,-500.0,0.00012101,2]
[354030012,1740185438301,-500.0,0.00012101,2]
[354030013,1740185438310,-2111.25,0.00012101,2]
[354030014,1740185438319,-500.0,0.00012101,2]
[354030015,1740185438329,-240.4,0.00012101,2]
[354030016,1740185438338,-500.0,0.00012101,2]
[354030017,1740185438347,-500.0,0.00012101,2]
[354030018,1740185438356,-500.0,0.00012101,2]
[354030019,1740185438365,-500.0,0.00012101,2]
[354030020,1740185438375,-169.33,0.00012101,2]
[354030021,1740185438383,-500.0,0.00012101,2]
[354030022,1740185438392,-500.0,0.00012101,2]
[354030023,1740185438401,-355.98,0.00012183,2]
[354030024,1740185438410,-463.9,0.00012183,2]
[354030025,1740185438419,-386.12,0.00012183,2]
[354030026,1740185438428,-500.0,0.00012183,2]
[354030027,1740185438438,-421.86,0.00012183,2]
[354030028,1740185438447,-542.36,0.00012183,2]
[354030029,1740185438456,-500.0,0.00012183,2]
[354030030,1740185438465,-500.0,0.00012183,2]
[354030031,1740185438474,-2111.25,0.00012183,2]
[354030032,1740185438483,-500.0,0.00012183,2]
[354030033,1740185438492,-500.0,0.00012183,2]
[354030034,1740185438501,-459.67019365,0.00012183,2]
[354030035,1740185438510,-500.0,0.00012183,2]
[354030036,1740185438519,-305.12,0.00012183,2]
[354030037,1740185438528,-500.0,0.00012183,2]
[354030038,1740185438537,-410.72,0.00012183,2]
[354030039,1740185438546,-197.09,0.00012224,2]
[354030040,1740185438555,-500.0,0.00012265,2]
[354030041,1740185438564,-500.0,0.00012265,2]
[354030042,1740185438574,-500.0,0.00012265,2]
[354030043,1740185438584,-2111.25,0.00012265,2]
[354030044,1740185438593,-295.26992671,0.00012265,2]
[354030045,1740185438602,-500.0,0.00012265,2]
[354030046,1740185438612,-500.0,0.00012265,2]
[354030047,1740185438623,-632.66,0.00012347,2]
[354030048,1740185438632,-500.0,0.00012347,2]
[354030049,1740185438643,-500.0,0.00012347,2]
[354030050,1740185438653,-2111.25,0.00012347,2]
[354030051,1740185438662,-348.81558361,0.00012347,2]
[354030052,1740185438671,-500.0,0.00012347,2]
[354030053,1740185438681,-500.0,0.0001243,2]
[354030054,1740185438691,-500.0,0.0001243,2]
[354030055,1740185438700,-2111.25,0.0001243,2]
[354030056,1740185438710,-500.0,0.0001243,2]
[354030057,1740185438720,-500.0,0.00012512,2]
[354030058,1740185438729,-257.21256216,0.00012512,2]
[354030059,1740185438738,-2111.25,0.00012512,2]
[354030060,1740185438747,-500.0,0.00012512,2]
[354030061,1740185438757,-500.0,0.00012594,2]
[354030062,1740185438765,-2111.25,0.00012594,2]
[354030063,1740185438776,-500.0,0.00012594,2]
[354030064,1740185438786,-500.0,0.00012676,2]
[354030065,1740185438796,-2111.25,0.00012676,2]
[354030066,1740185438805,-500.0,0.00012676,2]